fUSD/lending_fUSD_20240708
["ID","MTS","AMOUNT","RATE_DAILY","PERIOD"]
[331456108,1720424770282,-2232.09,0.00034038,32]
[331456109,1720424770318,-500.0,0.00034038,31]
[331456110,1720424770352,-500.0,0.00034038,32]
[331456111,1720424770392,-2232.09,0.00034038,33]
[331456112,1720424770429,-500.0,0.00034038,33]
[331456113,1720424770463,-2232.09,0.00034038,34]
[331456114,1720424770496,-500.0,0.00034038,34]
[331456115,1720424770531,-2232.09,0.00034038,35]
[331456116,1720424770566,-2024.43,0.00034038,30]
[331456117,1720424770602,-500.0,0.00034038,35]
[331456118,1720424770637,-2232.09,0.00034038,36]
[331456119,1720424770672,-2024.43,0.00034038,31]
[331456120,1720424770707,-361.69476311,0.00034038,36]
[331456121,1720424770744,-500.0,0.00034038,30]
[331456122,1720424770779,-2232.09,0.00034038,37]
[331456123,1720424770813,-2024.43,0.00034038,32]
[331456124,1720424770846,-500.0,0.00034038,31]
[331456125,1720424770888,-517.0653976,0.00034038,30]
[331456126,1720424770924,-2232.09,0.00034038,38]
[331456127,1720424770962,-2024.43,0.00034038,33]
[331456128,1720424770998,-500.0,0.00034038,32]
[331456129,1720424771034,-2232.09,0.00034038,39]
[331456130,1720424771070,-2024.43,0.00034038,34]
[331456131,1720424771107,-505.37144403,0.00034038,33]
[331456132,1720424771144,-2232.09,0.00034038,40]
[331456133,1720424771179,-2232.09,0.00034038,41]
[331456134,1720424771214,-2024.43,0.00034038,35]
[331456135,1720424771249,-2232.09,0.00034038,42]
[331456136,1720424771285,-2024.43,0.00034038,36]
[331456137,1720424771321,-2232.09,0.00034038,43]
[331456138,1720424771356,-2024.43,0.00034038,37]
[331456139,1720424771391,-2232.09,0.00034038,44]
[331456140,1720424771425,-2024.43,0.00034038,38]
[331456141,1720424771459,-2232.09,0.00034038,45]
[331456142,1720424771494,-2024.43,0.00034038,39]
[331456143,1720424771527,-2232.09,0.00034038,46]
[331456144,1720424771561,-2232.09,0.00034038,47]
[331456145,1720424771594,-2024.43,0.00034038,40]
[331456146,1720424771631,-2024.43,0.00034038,41]
[331456147,1720424771668,-2232.09,0.00034038,48]
[331456148,1720424771702,-2024.43,0.00034038,42]
[331456149,1720424771736,-2232.09,0.00034038,49]
[331456150,1720424771771,-2024.43,0.00034038,43]
[331456151,1720424771806,-2024.43,0.00034038,44]
[331456152,1720424771839,-2232.09,0.00034038,50]
[331456153,1720424771872,-2024.43,0.00034038,45]
[331456154,1720424771910,-2232.09,0.00034038,51]
[331456155,1720424771947,-2024.43,0.00034038,46]
[331456156,1720424771985,-2232.09,0.00034038,52]
[331456157,1720424772022,-500.95133666,0.00034038,30]
[331456158,1720424772058,-2232.09552157,0.00034038,53]
[331456159,1720424772091,-2024.43,0.00034038,47]
[331456160,1720424772132,-2024.43,0.00034038,48]
[331456161,1720424772165,-500.0,0.00034038,30]
[331456162,1720424772197,-2024.43,0.00034038,49]
[331456163,1720424772232,-282.13104279,0.00034038,31]
[331456164,1720424772269,-2024.43,0.00034038,50]
[331456165,1720424772303,-2024.43,0.00034038,51]
[331456166,1720424772336,-624.88,0.00034038,30]
[331456167,1720424772373,-2024.43,0.00034038,52]
[331456168,1720424772409,-624.88,0.00034038,31]
[331456169,1720424772442,-2024.53384296,0.00034038,53]
[331456170,1720424772475,-624.88,0.00034038,32]
[331456171,1720424772509,-624.88,0.00034038,33]
[331456172,1720424772542,-584.78,0.00034038,30]
[331456173,1720424772575,-500.0,0.00034038,30]
[331456174,1720424772610,-584.78,0.00034038,31]
[331456175,1720424772644,-624.88,0.00034038,34]
[331456176,1720424772680,-584.78,0.00034038,32]
[331456177,1720424772714,-500.0,0.00034038,31]
[331456178,1720424772749,-624.88,0.00034038,35]
[331456179,1720424772784,-624.88,0.00034038,36]
[331456180,1720424772819,-584.78,0.00034038,33]
[331456181,1720424772860,-500.0,0.00034038,32]
[331456182,1720424772896,-624.88,0.00034038,37]
[331456183,1720424772930,-500.0,0.00034038,33]
[331456184,1720424772967,-584.78,0.00034038,34]
[331456185,1720424773001,-500.0,0.00034038,30]
[331456186,1720424773034,-624.88,0.00034038,38]
[331456187,1720424773271,-500.0,0.00034038,34]
[331456188,1720424773307,-584.78,0.00034038,35]
[331456189,1720424773342,-624.88,0.00034038,39]
[331456190,1720424773378,-2908.4,0.00034038,30]
[331456191,1720424773411,-500.0,0.00034038,31]
[331456192,1720424773444,-624.88,0.00034038,40]
[331456193,1720424773478,-2908.4,0.00034038,31]
[331456194,1720424773511,-500.0,0.00034038,35]
[331456195,1720424773547,-584.78,0.00034038,36]
[331456196,1720424773581,-500.0,0.00034038,32]
[331456197,1720424773615,-500.0,0.00034038,36]
[331456198,1720424773649,-584.78,0.00034038,37]
[331456199,1720424773683,-506.48118496,0.00034038,33]
[331456200,1720424773716,-624.88,0.00034038,41]
[331456201,1720424773749,-500.0,0.00034038,37]
[331456202,1720424773782,-2908.4,0.00034038,32]
[331456203,1720424773814,-624.88,0.00034038,42]
[331456204,1720424773846,-584.78,0.00034038,38]
[331456205,1720424773881,-500.0,0.00034038,38]
[331456206,1720424773916,-2908.4,0.00034038,33]
[331456207,1720424773951,-624.88,0.00034038,43]
[331456208,1720424773987,-584.78,0.00034038,39]
[331456209,1720424774021,-500.0,0.00034038,39]
[331456210,1720424774054,-2908.4,0.00034038,34]
[331456211,1720424774087,-624.88,0.00034038,44]
[331456212,1720424774119,-2908.4,0.00034038,35]
[331456213,1720424774151,-508.93359612,0.00034038,40]
[331456214,1720424774184,-624.88,0.00034038,45]
[331456215,1720424774220,-584.78,0.00034038,40]
[331456216,1720424774254,-624.88,0.00034038,46]
[331456217,1720424774289,-584.78,0.00034038,41]
[331456218,1720424774325,-500.0,0.00034038,30]
[331456219,1720424774362,-2908.4,0.00034038,36]
[331456220,1720424774397,-624.88,0.00034038,47]
[331456221,1720424774431,-584.78,0.00034038,42]
[331456222,1720424774468,-500.0,0.00034038,31]
[331456223,1720424774504,-624.88,0.00034038,48]
[331456224,1720424774540,-2908.4,0.00034038,37]
[331456225,1720424774575,-584.78,0.00034038,43]
[331456226,1720424774611,-500.0,0.00034038,32]
[331456227,1720424774650,-624.88,0.00034038,49]
[331456228,1720424774685,-2908.4,0.00034038,38]
[331456229,1720424774718,-584.78,0.00034038,44]
[331456230,1720424774751,-500.0,0.00034038,33]
[331456231,1720424774786,-2908.4,0.00034038,39]
[331456232,1720424774818,-584.78,0.00034038,45]
[331456233,1720424774853,-500.0,0.00034038,34]
[331456234,1720424774887,-624.88,0.00034038,50]
[331456235,1720424774924,-584.78,0.00034038,46]
[331456236,1720424774959,-2908.4,0.00034038,40]
[331456237,1720424774995,-624.88,0.00034038,51]
[331456238,1720424775029,-584.78,0.00034038,47]
[331456239,1720424775063,-2908.4,0.00034038,41]
[331456240,1720424775096,-516.45906812,0.00034038,35]
[331456241,1720424775135,-500.0,0.00034038,30]
[331456242,1720424775167,-624.88,0.00034038,52]
[331456243,1720424775200,-500.0,0.00034038,31]
[331456244,1720424775234,-625.1142394,0.00034038,53]
[331456245,1720424775267,-2908.4,0.00034038,42]
[331456246,1720424775301,-584.78,0.00034038,48]
[331456247,1720424775335,-500.0,0.00034038,32]
[331456248,1720424775370,-584.78,0.00034038,49]
[331456249,1720424775404,-2908.4,0.00034038,43]
[331456250,1720424775438,-500.0,0.00034038,33]
[331456251,1720424775471,-584.78,0.00034038,50]
[331456252,1720424775503,-500.0,0.00034038,34]
[331456253,1720424775537,-2908.4,0.00034038,44]
[331456254,1720424775570,-584.78,0.00034038,51]
[331456255,1720424775605,-500.0,0.00034038,35]
[331456256,1720424775640,-2908.4,0.00034038,45]
[331456257,1720424775674,-584.78,0.00034038,52]
[331456258,1720424775709,-500.0,0.00034038,36]
[331456259,1720424775743,-2908.4,0.00034038,46]
[331456260,1720424775777,-584.82372821,0.00034038,53]
[331456261,1720424775811,-627.53642269,0.00034038,37]
[331456262,1720424775844,-2908.4,0.00034038,47]
[331456263,1720424775879,-2908.4,0.00034038,48]
[331456264,1720424775917,-2908.4,0.00034038,49]
[331456265,1720424775954,-848.31,0.00034038,30]
[331456266,1720424775989,-504.4922955,0.00034038,30]
[331456267,1720424776024,-2908.4,0.00034038,50]
[331456268,1720424776059,-848.31,0.00034038,31]
[331456269,1720424776093,-2908.4,0.00034038,51]
[331456270,1720424776128,-848.31,0.00034038,32]
[331456271,1720424776162,-2908.4,0.00034038,52]
[331456272,1720424776196,-848.31,0.00034038,33]
[331456273,1720424776230,-2908.55180669,0.00034038,53]
[331456274,1720424776264,-848.31,0.00034038,34]
[331456275,1720424776300,-848.31,0.00034038,35]
[331456276,1720424776334,-1679.82,0.00034038,30]
[331456277,1720424776368,-848.31,0.00034038,36]
[331456278,1720424776401,-1679.82,0.00034038,31]
[331456279,1720424776434,-848.31,0.00034038,37]
[331456280,1720424776467,-500.0,0.00034038,30]
[331456281,1720424776499,-848.31,0.00034038,38]
[331456282,1720424776536,-439.29426666,0.00034038,30]
[331456283,1720424776568,-500.0,0.00034038,31]
[331456284,1720424776602,-1679.82,0.00034038,32]
[331456285,1720424776635,-848.31,0.00034038,39]
[331456286,1720424776667,-500.0,0.00034038,32]
[331456287,1720424776699,-1679.82,0.00034038,33]
[331456288,1720424776732,-848.31,0.00034038,40]
[331456289,1720424776766,-1679.82,0.00034038,34]
[331456290,1720424777005,-500.0,0.00034038,33]
[331456291,1720424777040,-848.31,0.00034038,41]
[331456292,1720424777074,-1474.84,0.00034038,30]
[331456293,1720424777110,-1679.82,0.00034038,35]
[331456294,1720424777144,-500.0,0.00034038,30]
[331456295,1720424777178,-500.0,0.00034038,34]
[331456296,1720424777212,-1474.84,0.00034038,31]
[331456297,1720424777246,-848.31,0.00034038,42]
[331456298,1720424777280,-500.0,0.00034038,30]
[331456299,1720424777314,-1679.82,0.00034038,36]
[331456300,1720424777347,-500.0,0.00034038,31]
[331456301,1720424777383,-500.0,0.00034038,35]
[331456302,1720424777419,-1474.84,0.00034038,32]
[331456303,1720424777453,-848.31,0.00034038,43]
[331456304,1720424777487,-500.0,0.00034038,31]
[331456305,1720424777521,-1679.82,0.00034038,37]
[331456306,1720424777555,-848.31,0.00034038,44]
[331456307,1720424777589,-1474.84,0.00034038,33]
[331456308,1720424777627,-500.0,0.00034038,32]
[331456309,1720424777664,-1679.82,0.00034038,38]
[331456310,1720424777715,-500.0,0.00034038,32]
[331456311,1720424777754,-848.31,0.00034038,45]
[331456312,1720424777789,-500.0,0.00034038,36]
[331456313,1720424777824,-1474.84,0.00034038,34]
[331456314,1720424777862,-500.0,0.00034038,33]
[331456315,1720424777904,-1679.82,0.00034038,39]
[331456316,1720424777941,-500.0,0.00034038,33]
[331456317,1720424777978,-848.31,0.00034038,46]
[331456318,1720424778013,-500.0,0.00034038,37]
[331456319,1720424778274,-500.0,0.00034038,30]
[331456320,1720424778310,-1474.84,0.00034038,35]
[331456321,1720424778346,-500.0,0.00034038,34]
[331456322,1720424778383,-500.0,0.00034038,34]
[331456323,1720424778419,-1679.82,0.00034038,40]
[331456324,1720424778455,-848.31,0.00034038,47]
[331456325,1720424778489,-500.0,0.00034038,38]
[331456326,1720424778524,-1474.84,0.00034038,36]
[331456327,1720424778562,-500.0,0.00034038,35]
[331456328,1720424778598,-500.0,0.00034038,35]
[331456329,1720424778636,-848.31,0.00034038,48]
[331456330,1720424778672,-1679.82,0.00034038,41]
[331456331,1720424778706,-500.0,0.00034038,39]
[331456332,1720424778742,-1474.84,0.00034038,37]
[331456333,1720424778780,-500.0,0.00034038,36]
[331456334,1720424778814,-243.98409672,0.00034038,36]
[331456335,1720424778847,-848.31,0.00034038,49]
[331456336,1720424778886,-518.61798803,0.00034038,40]
[331456337,1720424778923,-1679.82,0.00034038,42]
[331456338,1720424778957,-1474.84,0.00034038,38]
[331456339,1720424779001,-500.0,0.00034038,37]
[331456340,1720424779034,-848.31,0.00034038,50]
[331456341,1720424779068,-1474.84,0.00034038,39]
[331456342,1720424779101,-500.0,0.00034038,38]
[331456343,1720424779135,-848.31,0.00034038,51]
[331456344,1720424779168,-1474.84,0.00034038,40]
[331456345,1720424779203,-204.99170299,0.00034038,39]
[331456346,1720424779236,-1679.82,0.00034038,43]
[331456347,1720424779270,-848.31,0.00034038,52]
[331456348,1720424779303,-1474.84,0.00034038,41]
[331456349,1720424779336,-848.41136602,0.00034038,53]
[331456350,1720424779373,-1474.84,0.00034038,42]
[331456351,1720424779409,-1679.82,0.00034038,44]
[331456352,1720424779443,-579.4,0.00034038,30]
[331456353,1720424779476,-1474.84,0.00034038,43]
[331456354,1720424779509,-579.4,0.00034038,31]
[331456355,1720424779542,-1679.82,0.00034038,45]
[331456356,1720424779577,-1474.84,0.00034038,44]
[331456357,1720424779611,-1679.82,0.00034038,46]
[331456358,1720424779646,-579.4,0.00034038,32]
[331456359,1720424779686,-500.0,0.00034038,30]
[331456360,1720424779721,-1474.84,0.00034038,45]
[331456361,1720424779757,-579.4,0.00034038,33]
[331456362,1720424779791,-500.0,0.00034038,31]
[331456363,1720424779826,-1679.82,0.00034038,47]
[331456364,1720424779861,-1474.84,0.00034038,46]
[331456365,1720424779895,-579.4,0.00034038,34]
[331456366,1720424779931,-1679.82,0.00034038,48]
[331456367,1720424779969,-500.0,0.00034038,32]
[331456368,1720424780006,-1474.84,0.00034038,47]
[331456369,1720424780041,-579.4,0.00034038,35]
[331456370,1720424780076,-1474.84,0.00034038,48]
[331456371,1720424780115,-1679.82,0.00034038,49]
[331456372,1720424780149,-500.0,0.00034038,33]
[331456373,1720424780183,-579.4,0.00034038,36]
[331456374,1720424780218,-1474.84,0.00034038,49]
[331456375,1720424780255,-1679.82,0.00034038,50]
[331456376,1720424780290,-579.4,0.00034038,37]
[331456377,1720424780324,-1474.84,0.00034038,50]
[331456378,1720424780358,-1679.82,0.00034038,51]
[331456379,1720424780393,-500.0,0.00034038,34]
[331456380,1720424780428,-579.4,0.00034038,38]
[331456381,1720424780464,-1474.84,0.00034038,51]
[331456382,1720424780500,-1679.82,0.00034038,52]
[331456383,1720424780533,-579.4,0.00034038,39]
[331456384,1720424780567,-500.0,0.00034038,35]
[331456385,1720424780600,-1474.84,0.00034038,52]
[331456386,1720424780636,-1680.04474482,0.00034038,53]
[331456387,1720424780671,-579.4,0.00034038,40]
[331456388,1720424780705,-1474.95489273,0.00034038,53]
[331456389,1720424780739,-500.0,0.00034038,36]
[331456390,1720424780772,-579.4,0.00034038,41]
[331456391,1720424780805,-500.0,0.00034038,37]
[331456392,1720424780838,-579.4,0.00034038,42]
[331456393,1720424781096,-552.42923997,0.00034038,38]
[331456394,1720424781135,-579.4,0.00034038,43]
[331456395,1720424781173,-579.4,0.00034038,44]
[331456396,1720424781207,-579.4,0.00034038,45]
[331456397,1720424781242,-579.4,0.00034038,46]
[331456398,1720424781275,-579.4,0.00034038,47]
[331456399,1720424781311,-500.0,0.00034038,30]
[331456400,1720424781352,-500.0,0.00034038,30]
[331456401,1720424781389,-579.4,0.00034038,48]
[331456402,1720424781425,-500.0,0.00034038,31]
[331456403,1720424781462,-579.4,0.00034038,49]
[331456404,1720424781498,-500.0,0.00034038,31]
[331456405,1720424781539,-500.0,0.00034038,32]
[331456406,1720424781576,-500.0,0.00034038,30]
[331456407,1720424781612,-579.4,0.00034038,50]
[331456408,1720424781649,-500.0,0.00034038,33]
[331456409,1720424781686,-500.0,0.00034038,31]
[331456410,1720424781723,-579.4,0.00034038,51]
[331456411,1720424781759,-500.0,0.00034038,34]
[331456412,1720424781797,-500.0,0.00034038,32]
[331456413,1720424781833,-579.4,0.00034038,52]
[331456414,1720424781869,-500.0,0.00034038,33]
[331456415,1720424781910,-579.6315867,0.00034038,53]
[331456416,1720424781947,-500.0,0.00034038,34]
[331456417,1720424781984,-500.0,0.00034038,35]
[331456418,1720424782020,-500.0,0.00034038,30]
[331456419,1720424782059,-500.0,0.00034038,31]
[331456420,1720424782095,-500.0,0.00034038,36]
[331456421,1720424782134,-500.0,0.00034038,32]
[331456422,1720424782169,-500.0,0.00034038,30]
[331456423,1720424782205,-500.0,0.00034038,37]
[331456424,1720424782242,-500.0,0.00034038,33]
[331456425,1720424782278,-500.0,0.00034038,34]
[331456426,1720424782314,-500.0,0.00034038,31]
[331456427,1720424782350,-500.0,0.00034038,35]
[331456428,1720424782385,-500.0,0.00034038,38]
[331456429,1720424782421,-500.0,0.00034038,32]
[331456430,1720424782456,-500.0,0.00034038,36]
[331456431,1720424782492,-500.0,0.00034038,39]
[331456432,1720424782530,-500.0,0.00034038,33]
[331456433,1720424782564,-500.0,0.00034038,37]
[331456434,1720424782599,-500.0,0.00034038,40]
[331456435,1720424782635,-500.0,0.00034038,34]
[331456436,1720424782669,-500.0,0.00034038,38]
[331456437,1720424782704,-500.0,0.00034038,41]
[331456438,1720424782740,-500.0,0.00034038,30]
[331456439,1720424782775,-500.0,0.00034038,30]
[331456440,1720424782809,-500.0,0.00034038,35]
[331456441,1720424782843,-500.0,0.00034038,39]
[331456442,1720424782881,-500.0,0.00034038,42]
[331456443,1720424782921,-500.0,0.00034038,31]
[331456444,1720424782958,-500.0,0.00034038,36]
[331456445,1720424782996,-500.0,0.00034038,43]
[331456446,1720424783031,-500.0,0.00034038,40]
[331456447,1720424783067,-636.50817842,0.00034038,32]
[331456448,1720424783103,-500.0,0.00034038,37]
[331456449,1720424783138,-500.0,0.00034038,30]
[331456450,1720424783173,-500.0,0.00034038,31]
[331456451,1720424783213,-500.0,0.00034038,44]
[331456452,1720424783248,-500.0,0.00034038,41]
[331456453,1720424783284,-500.0,0.00034038,38]
[331456454,1720424783319,-500.0,0.00034038,32]
[331456455,1720424783353,-500.0,0.00034038,45]
[331456456,1720424783388,-500.0,0.00034038,39]
[331456457,1720424783423,-500.0,0.00034038,42]
[331456458,1720424783457,-500.0,0.00034038,33]
[331456459,1720424783492,-500.0,0.00034038,46]
[331456460,1720424783528,-500.0,0.00034038,43]
[331456461,1720424783563,-500.0,0.00034038,40]
[331456462,1720424783599,-500.0,0.00034038,34]
[331456463,1720424783636,-500.0,0.00034038,47]
[331456464,1720424783672,-500.0,0.00034038,35]
[331456465,1720424783707,-500.0,0.00034038,44]
[331456466,1720424783743,-500.0,0.00034038,41]
[331456467,1720424783778,-500.0,0.00034038,48]
[331456468,1720424783812,-500.0,0.00034038,36]
[331456469,1720424783846,-500.0,0.00034038,45]
[331456470,1720424783880,-500.0,0.00034038,42]
[331456471,1720424783917,-500.0,0.00034038,49]
[331456472,1720424783953,-500.0,0.00034038,30]
[331456473,1720424783988,-500.0,0.00034038,37]
[331456474,1720424784022,-574.00904092,0.00034038,46]
[331456475,1720424784057,-500.0,0.00034038,43]
[331456476,1720424784091,-208.44425493,0.00034038,31]
[331456477,1720424784124,-500.0,0.00034038,38]
[331456478,1720424784158,-279.2395929,0.00034038,44]
[331456479,1720424784192,-500.0,0.00034038,50]
[331456480,1720424784233,-500.0,0.00034038,39]
[331456481,1720424784268,-500.0,0.00034038,51]
[331456482,1720424784303,-496.16598292,0.00034038,30]
[331456483,1720424784338,-500.0,0.00034038,40]
[331456484,1720424784377,-465.5580602,0.00034038,52]
[331456485,1720424784416,-500.0,0.00034038,41]
[331456486,1720424784451,-500.0,0.00034038,42]
[331456487,1720424784486,-500.0,0.00034038,43]
[331456488,1720424784520,-500.0,0.00034038,44]
[331456489,1720424784555,-500.49706062,0.00034038,30]
[331456490,1720424784591,-500.0,0.00034038,45]
[331456491,1720424784627,-500.0,0.00034038,30]
[331456492,1720424784663,-724.83,0.00034038,30]
[331456493,1720424784699,-500.0,0.00034038,46]
[331456494,1720424784734,-724.83,0.00034038,31]
[331456495,1720424784769,-500.0,0.00034038,47]
[331456496,1720424784805,-724.83,0.00034038,32]
[331456497,1720424785117,-500.0,0.00034038,48]
[331456498,1720424785153,-724.83,0.00034038,33]
[331456499,1720424785189,-500.0,0.00034038,49]
[331456500,1720424785225,-724.83,0.00034038,34]
[331456501,1720424785264,-262.84775266,0.00034038,50]
[331456502,1720424785300,-724.83,0.00034038,35]
[331456503,1720424785337,-724.83,0.00034038,36]
[331456504,1720424785375,-500.0,0.00034038,30]
[331456505,1720424785418,-500.0,0.00034038,30]
[331456506,1720424785453,-724.83,0.00034038,37]
[331456507,1720424785489,-500.0,0.00034038,31]
[331456508,1720424785523,-500.0,0.00034038,31]
[331456509,1720424785559,-517.46690535,0.00034038,30]
[331456510,1720424785596,-724.83,0.00034038,38]
[331456511,1720424785632,-500.0,0.00034038,32]
[331456512,1720424785667,-500.0,0.00034038,32]
[331456513,1720424785702,-724.83,0.00034038,39]
[331456514,1720424785737,-500.0,0.00034038,33]
[331456515,1720424785772,-500.0,0.00034038,33]
[331456516,1720424785806,-637.14922229,0.00034038,34]
[331456517,1720424785842,-724.83,0.00034038,40]
[331456518,1720424785877,-500.0,0.00034038,34]
[331456519,1720424785914,-724.83,0.00034038,41]
[331456520,1720424785948,-500.0,0.00034038,35]
[331456521,1720424785985,-724.83,0.00034038,42]
[331456522,1720424786019,-500.0,0.00034038,36]
[331456523,1720424786053,-724.83,0.00034038,43]
[331456524,1720424786087,-724.83,0.00034038,44]
[331456525,1720424786121,-500.0,0.00034038,37]
[331456526,1720424786155,-500.0,0.00034038,38]
[331456527,1720424786189,-724.83,0.00034038,45]
[331456528,1720424786224,-724.83,0.00034038,46]
[331456529,1720424786259,-500.0,0.00034038,39]
[331456530,1720424786294,-500.0,0.00034038,30]
[331456531,1720424786328,-512.98258572,0.00034038,30]
[331456532,1720424786363,-724.83,0.00034038,47]
[331456533,1720424786398,-500.0,0.00034038,40]
[331456534,1720424786432,-500.0,0.00034038,31]
[331456535,1720424786468,-724.83,0.00034038,48]
[331456536,1720424786503,-525.22446061,0.00034038,41]
[331456537,1720424786538,-500.0,0.00034038,32]
[331456538,1720424786573,-724.83,0.00034038,49]
[331456539,1720424786608,-500.0,0.00034038,33]
[331456540,1720424786648,-724.83,0.00034038,50]
[331456541,1720424786684,-500.0,0.00034038,34]
[331456542,1720424786720,-724.83,0.00034038,51]
[331456543,1720424786755,-500.0,0.00034038,35]
[331456544,1720424786789,-724.83,0.00034038,52]
[331456545,1720424786824,-500.0,0.00034038,36]
[331456546,1720424786859,-725.01465455,0.00034038,53]
[331456547,1720424786900,-500.0,0.00034038,37]
[331456548,1720424786935,-500.0,0.00034038,38]
[331456549,1720424786970,-1604.93,0.00034038,30]
[331456550,1720424787004,-500.0,0.00034038,39]
[331456551,1720424787039,-500.0,0.00034038,30]
[331456552,1720424787072,-1604.93,0.00034038,31]
[331456553,1720424787104,-395.77402604,0.00034038,40]
[331456554,1720424787138,-500.0,0.00034038,30]
[331456555,1720424787171,-500.0,0.00034038,31]
[331456556,1720424787204,-1604.93,0.00034038,32]
[331456557,1720424787238,-512.47349701,0.00034038,31]
[331456558,1720424787271,-500.0,0.00034038,32]
[331456559,1720424787304,-500.0,0.00034038,30]
[331456560,1720424787342,-1604.93,0.00034038,33]
[331456561,1720424787382,-500.0,0.00034038,33]
[331456562,1720424787423,-1604.93,0.00034038,34]
[331456563,1720424787461,-500.0,0.00034038,34]
[331456564,1720424787502,-500.0,0.00034038,30]
[331456565,1720424787541,-500.0,0.00034038,35]
[331456566,1720424787580,-1604.93,0.00034038,35]
[331456567,1720424787622,-500.0,0.00034038,36]
[331456568,1720424787656,-500.0,0.00034038,31]
[331456569,1720424787691,-1604.93,0.00034038,36]
[331456570,1720424787726,-500.0,0.00034038,37]
[331456571,1720424787759,-1604.93,0.00034038,37]
[331456572,1720424787793,-500.0,0.00034038,38]
[331456573,1720424787826,-500.0,0.00034038,32]
[331456574,1720424787858,-1604.93,0.00034038,38]
[331456575,1720424787896,-500.0,0.00034038,30]
[331456576,1720424787932,-500.0,0.00034038,39]
[331456577,1720424787966,-500.0,0.00034038,33]
[331456578,1720424788002,-1604.93,0.00034038,39]
[331456579,1720424788036,-500.0,0.00034038,31]
[331456580,1720424788071,-500.0,0.00034038,30]
[331456581,1720424788105,-500.0,0.00034038,40]
[331456582,1720424788139,-500.0,0.00034038,34]
[331456583,1720424788172,-1604.93,0.00034038,40]
[331456584,1720424788205,-500.0,0.00034038,31]
[331456585,1720424788239,-500.0,0.00034038,32]
[331456586,1720424788272,-1604.93,0.00034038,41]
[331456587,1720424788303,-500.0,0.00034038,41]
[331456588,1720424788336,-500.0,0.00034038,32]
[331456589,1720424788371,-500.0,0.00034038,33]
[331456590,1720424788405,-500.0,0.00034038,35]
[331456591,1720424788442,-1604.93,0.00034038,42]
[331456592,1720424788481,-500.0,0.00034038,42]
[331456593,1720424788523,-500.0,0.00034038,33]
[331456594,1720424788562,-500.0,0.00034038,34]
[331456595,1720424788600,-869.05,0.00034038,30]
[331456596,1720424788639,-500.0,0.00034038,36]
[331456597,1720424788672,-1604.93,0.00034038,43]
[331456598,1720424788706,-500.0,0.00034038,34]
[331456599,1720424788742,-500.0,0.00034038,35]
[331456600,1720424788951,-869.05,0.00034038,31]
[331456601,1720424789021,-500.0,0.00034038,37]
[331456602,1720424789057,-1604.93,0.00034038,44]
[331456603,1720424789094,-500.0,0.00034038,35]
[331456604,1720424789129,-500.0,0.00034038,36]
[331456605,1720424789169,-869.05,0.00034038,32]
[331456606,1720424789204,-500.0,0.00034038,38]
[331456607,1720424789240,-1604.93,0.00034038,45]